fUSD/lending_fUSD_20240503
["ID","MTS","AMOUNT","RATE_DAILY","PERIOD"]
[325333358,1714740632973,-544.02,0.000355,2]
[325333439,1714740637815,-1308.10749371,0.00016897,2]
[325333442,1714740637825,-4711.79846551,0.000355,2]
[325333444,1714740637837,-18152.54232656,0.000355,2]
[325333447,1714740637849,-19334.94020919,0.000355,2]
[325333449,1714740637861,-60199.99999999,0.000355,2]
[325333450,1714740637872,-20045.1978705,0.000355,2]
[325333452,1714740637888,-258794.85471862,0.000355,2]
[325333453,1714740637919,-1362380.51802298,0.000355,2]
[325333454,1714740637929,-3666.7632452,0.000355,8]
[325333456,1714740637943,-500.0,0.000355,120]
[325333458,1714740637952,-569.30171561,0.000356,30]
[325333459,1714740637961,-288.0,0.00035688,2]
[325333460,1714740637970,-300.0,0.000357,13]
[325333461,1714740637980,-600.0,0.000358,13]
[325333462,1714740637990,-900.0,0.000359,13]
[325333463,1714740638000,-352.43262006,0.00035936,2]
[325333464,1714740638010,-500.0,0.00036,120]
[325333465,1714740638020,-600.0,0.00036118,2]
[325333466,1714740638030,-160.0,0.00036118,120]
[325333467,1714740638039,-3666.7632452,0.00036264,9]
[325333468,1714740638048,-377.0469,0.00036372,2]
[325333469,1714740638058,-352.43262006,0.00036471,2]
[325333470,1714740638067,-500.0,0.000365,120]
[325333471,1714740638076,-320.64,0.0003666,3]
[325333472,1714740638086,-400.0,0.00036898,2]
[325333473,1714740638096,-155.0,0.00037,4]
[325333474,1714740638106,-364.0416314,0.00037,120]
[325333475,1714740638115,-3270.0,0.00037,60]
[325333476,1714740638125,-352.43262006,0.00037007,2]
[325333477,1714740638134,-150.05,0.00037023,2]
[325333478,1714740638144,-3666.7632452,0.00037027,10]
[325333479,1714740638154,-500.0,0.00037136,10]
[325333480,1714740638163,-13528.39642634,0.000375,3]
[325333481,1714740638174,-310.0,0.000375,3]
[325333482,1714740638183,-352.43262006,0.00037543,2]
[325333483,1714740638196,-3666.7632452,0.00037791,11]
[325333484,1714740638204,-377.0469,0.00037837,2]
[325333485,1714740638213,-164.06,0.00037931,120]
[325333486,1714740638222,-500.0,0.00037958,10]
[325333487,1714740638232,-150.0,0.00038,4]
[325333488,1714740638241,-352.43262006,0.00038079,2]
[325333489,1714740638250,-760.0,0.00038133,5]
[325333490,1714740638260,-500.0,0.00038232,10]
[325333491,1714740638269,-2379.33,0.00038328,45]
[325333492,1714740638278,-2233.72,0.00038328,45]
[325333493,1714740638288,-150.0,0.00038401,2]
[325333494,1714740638297,-1384.32,0.00038516,2]
[325333495,1714740638306,-1384.32,0.00038516,2]
[325333496,1714740638316,-471251.37057554,0.00038517,120]
[325333497,1714740638328,-162777.57367657,0.00038517,120]
[325333498,1714740638338,-3666.7632452,0.00038555,12]
[325333499,1714740638347,-375.6,0.000386,7]
[325333500,1714740638357,-2379.33,0.00038602,47]
[325333501,1714740638366,-2233.72,0.00038602,47]
[325333502,1714740638375,-352.43262006,0.00038614,2]
[325333503,1714740638385,-288.0,0.00038688,2]
[325333504,1714740638395,-300.0,0.00038727,120]
[325333505,1714740638405,-243.69,0.00038744,120]
[325333506,1714740638414,-500.0,0.0003878,10]
[325333507,1714740638424,-500.0,0.0003878,10]
[325333508,1714740638434,-2379.33,0.00038876,49]
[325333509,1714740638446,-2233.72,0.00038876,49]
[325333510,1714740638456,-881.87566879,0.000389,30]
[325333511,1714740638466,-4088.79484012,0.000389,15]
[325333512,1714740638477,-1200.0,0.000389,14]
[325333513,1714740638487,-28783.54,0.00038909,5]
[325333514,1714740638497,-3497.72576639,0.00038926,2]
[325333515,1714740638506,-708.0,0.00039,2]
[325333516,1714740638516,-172.57078449,0.00039005,3]
[325333517,1714740638526,-417.48727554,0.0003901,2]
[325333518,1714740638536,-500.0,0.00039054,10]
[325333519,1714740638545,-1000.0,0.00039084,20]
[325333520,1714740638555,-500.0,0.00039084,20]
[325333521,1714740638565,-1000.0,0.00039085,20]
[325333522,1714740638579,-1000.0,0.00039085,20]
[325333523,1714740638589,-500.0,0.00039085,20]
[325333524,1714740638599,-500.0,0.00039085,20]
[325333525,1714740638610,-1560.32144644,0.00039111,2]
[325333526,1714740638619,-2379.33,0.0003915,51]
[325333527,1714740638629,-2233.72,0.0003915,51]
[325333528,1714740638639,-352.43262006,0.0003915,2]
[325333529,1714740638650,-150.0,0.00039201,2]
[325333530,1714740638662,-1384.32,0.00039299,2]
[325333531,1714740638671,-3666.7632452,0.00039318,13]
[325333532,1714740638681,-500.0,0.00039328,10]
[325333533,1714740638694,-500.0,0.00039328,10]
[325333534,1714740638704,-500.0,0.00039328,10]
[325333535,1714740638713,-416.5451979,0.00039397,2]
[325333536,1714740638723,-52809.0828424,0.00039397,2]
[325333537,1714740638732,-2908.7306709,0.00039397,2]
[325333538,1714740638742,-35307.0856972,0.00039397,2]
[325333539,1714740638751,-13744.8194347,0.00039397,2]
[325333540,1714740638760,-276.90455109,0.00039399,2]
[325333541,1714740638770,-755.12814862,0.00039399,2]
[325333542,1714740638781,-1384.32,0.00039399,2]
[325333543,1714740638790,-1384.32,0.00039399,2]
[325333544,1714740638800,-1384.32,0.00039399,2]
[325333545,1714740638810,-1384.32,0.00039399,2]
[325333546,1714740638820,-1384.32,0.00039399,2]
[325333547,1714740638829,-1384.32,0.00039399,2]
[325333548,1714740638839,-1384.32,0.00039399,2]
[325333549,1714740638848,-1384.32,0.00039399,2]
[325333550,1714740638858,-137772.13615452,0.000394,2]
[325333551,1714740638867,-2000.0,0.000394,24]
[325333552,1714740638877,-288.72057434,0.000394,4]
[325333553,1714740638886,-500.0,0.000394,14]
[325333554,1714740638896,-484.0,0.000394,25]
[325333555,1714740638905,-342.0,0.000394,14]
[325333556,1714740638914,-342.0,0.000394,14]
[325333557,1714740638924,-685.0,0.000394,14]
[325333558,1714740638932,-685.0,0.000394,14]
[325333559,1714740638945,-2212.20569301,0.000394,4]
[325333560,1714740638954,-500.0,0.000394,5]
[325333561,1714740638963,-408.68643751,0.000394,4]
[325333562,1714740638973,-167.56442339,0.000394,30]
[325333563,1714740638982,-1036.73785114,0.000394,4]
[325333564,1714740638992,-1041.0025071,0.000394,4]
[325333565,1714740639001,-443.481164,0.000394,2]
[325333566,1714740639010,-479.0,0.000394,25]
[325333567,1714740639020,-202.0,0.000394,2]
[325333568,1714740639029,-202.0,0.000394,2]
[325333569,1714740639038,-209.0,0.000394,2]
[325333570,1714740639047,-209.0,0.000394,2]
[325333571,1714740639057,-484.0,0.000394,25]
[325333572,1714740639066,-342.0,0.000394,14]
[325333573,1714740639078,-188.0,0.000394,25]
[325333574,1714740639088,-272.87,0.000394,7]
[325333575,1714740639098,-500.0,0.000394,5]
[325333576,1714740639108,-500.0,0.000394,5]
[325333577,1714740639116,-500.0,0.000394,5]
[325333578,1714740639125,-500.0,0.000394,5]
[325333579,1714740639135,-500.0,0.000394,5]
[325333580,1714740639144,-500.0,0.000394,5]
[325333581,1714740639154,-236.75458862,0.000394,2]
[325333582,1714740639163,-492.8521724,0.000394,120]
[325333583,1714740639173,-4123.24250626,0.000394,4]
[325333584,1714740639184,-375.6,0.000394,7]
[325333585,1714740639195,-2000.0,0.000394,2]
[325333586,1714740639205,-200.0,0.000394,2]
[325333587,1714740639215,-88526.04117163,0.000394,2]
[325333588,1714740639224,-179.73027073,0.000394,2]
[325333589,1714740639234,-500.0,0.000394,7]
[325333590,1714740639244,-500.0,0.000394,7]
[325333591,1714740639254,-500.0,0.000394,7]
[325333592,1714740639263,-500.0,0.000394,7]
[325333593,1714740639273,-150.0,0.000394,14]
[325333607,1714740639597,-500.0,0.000394,7]
[325333608,1714740639609,-3000.0,0.000394,2]
[325333609,1714740639618,-871670.10475333,0.000394,10]
[325333610,1714740639632,-423396.89926276,0.000394,10]
[325333611,1714740639644,-2022.81688463,0.000394,10]
[325333612,1714740639666,-181569.59963504,0.000394,10]
[325333613,1714740639678,-1327.46437515,0.000394,10]
[325333614,1714740639711,-2608.70054198,0.000394,10]
[325333615,1714740639722,-5825.6993,0.000394,10]
[325333616,1714740639733,-603.94624,0.000394,10]
[325333617,1714740640497,-98639.85279813,0.00038517,7]
[325333618,1714740640507,-81317.86663605,0.000394,10]
[325333619,1714740640531,-1592.62929954,0.000394,10]
[325333620,1714740640543,-1379.2535314,0.000394,10]
[325333621,1714740640567,-400.20930812,0.000394,10]
[325333622,1714740640579,-536.64205574,0.000394,10]
[325333623,1714740640902,-1308.10749369,0.00017399,2]
[325333624,1714740640912,-377.0469,0.00039302,2]
[325333625,1714740640922,-1474.10222371,0.000394,10]
[325333626,1714740640967,-13512.56468285,0.000394,10]
[325333627,1714740640987,-724.36043818,0.000394,10]
[325333628,1714740640998,-324.43169441,0.000394,10]
[325333629,1714740641057,-85252.47983086,0.000394,10]
[325333630,1714740641068,-8643.67207993,0.000394,10]
[325333631,1714740641148,-1906.93647508,0.000394,10]
[325333632,1714740641160,-115991.76190796,0.000394,10]
[325333633,1714740641171,-3250.0,0.000394,10]
[325333634,1714740641183,-3011.90889996,0.000394,10]
[325333635,1714740641199,-1013.8937897,0.000394,10]
[325333636,1714740641271,-589.56767004,0.000394,10]
[325333637,1714740641283,-399.31545818,0.000394,10]
[325333638,1714740641295,-472.90510986,0.000394,10]
[325333639,1714740641315,-538.51236108,0.00027976,2]
[325333641,1714740641324,-8718.88764493,0.000394,10]
[325333643,1714740641335,-29028.315582,0.000394,10]
[325333645,1714740641347,-46114.94027992,0.000394,10]
[325333646,1714740641383,-3163930.9805485,0.000394,10]
[325333647,1714740641395,-941196.59856414,0.000394,10]
[325333648,1714740641408,-3509616.94336599,0.000394,10]
[325333680,1714740642746,-503.41876575,0.00039399,2]
[325333681,1714740642756,-329.21282883,0.000394,3]
[325333682,1714740642768,-578.08048048,0.000394,3]
[325333683,1714740642778,-19602.10144202,0.000394,10]
[325333684,1714740642926,-781.53588268,0.00027976,2]
[325333685,1714740642936,-41914.59679407,0.000394,10]
[325333686,1714740642950,-600.0,0.00039402,2]
[325333687,1714740642960,-160.0,0.00039402,120]
[325333688,1714740642969,-2379.33,0.00039424,53]
[325333689,1714740642979,-2233.72,0.00039424,53]
[325333690,1714740642989,-214.03783004,0.00039451,7]
[325333691,1714740642999,-300.0,0.00039487,120]
[325333692,1714740643008,-260.0,0.000395,14]
[325333693,1714740643018,-352.43262006,0.00039686,2]
[325333694,1714740643029,-2379.33,0.00039698,55]
[325333695,1714740643038,-2233.72,0.00039698,55]
[325333697,1714740643048,-202.0,0.0003978,2]
[325333698,1714740643057,-209.0,0.0003978,2]
[325333699,1714740643067,-2000.0,0.00039794,2]
[325333700,1714740643077,-200.0,0.00039794,2]
[325333701,1714740643086,-151.21,0.00039856,2]
[325333702,1714740643095,-500.0,0.00039876,10]
[325333703,1714740643105,-500.0,0.00039876,10]
[325333704,1714740643114,-1500.0,0.000399,14]
[325333705,1714740643123,-2379.33,0.00039972,57]
[325333706,1714740643133,-2233.72,0.00039972,57]
[325333708,1714740643143,-2410.20379189,0.0003999,2]
[325333709,1714740643152,-448.11908279,0.00039999,30]
[325333711,1714740643162,-1384.32,0.00039999,2]
[325333713,1714740643171,-1384.32,0.00039999,2]
[325333715,1714740643181,-1384.32,0.00039999,2]
[325333716,1714740643194,-1384.32,0.00039999,2]
[325333718,1714740643203,-1384.36239168,0.00039999,2]
[325333720,1714740643212,-50000.0,0.0004,20]
[325333722,1714740643222,-155.0,0.0004,4]
[325333723,1714740643232,-27690.95581398,0.0004,4]
[325333725,1714740643241,-241.62867956,0.0004,2]
[325333727,1714740643250,-697.34036666,0.0004,4]
[325333729,1714740643259,-9718.03693266,0.0004,10]
[325333731,1714740643269,-16827.38884197,0.0004,3]
[325333732,1714740643278,-1000.0,0.0004,2]
[325333734,1714740643288,-500.0,0.0004,10]
[325333736,1714740643298,-19343.0,0.0004,10]
[325333738,1714740643307,-10000.0,0.0004,3]
[325333739,1714740643316,-11683.77196759,0.0004,4]
[325333741,1714740643325,-305.35841904,0.0004,4]
[325333743,1714740643334,-393.190655,0.0004,7]
[325333744,1714740643344,-498.62275259,0.0004,30]
[325333746,1714740643353,-642.43211615,0.0004,120]
[325333748,1714740643363,-4991.36466977,0.0004,2]
[325333750,1714740643372,-369.8329413,0.0004,2]
[325333752,1714740643382,-263.17847042,0.0004,30]
[325333754,1714740643391,-2856.82750941,0.0004,5]
[325333755,1714740643400,-446.19795326,0.0004,120]
[325333756,1714740643410,-1464.32360073,0.0004,30]
[325333757,1714740643419,-10000.0,0.0004,30]
[325333758,1714740643429,-20000.0,0.0004,30]
[325333759,1714740643438,-680.0,0.0004,120]
[325333761,1714740643452,-619.28491992,0.0004,2]
[325333763,1714740643461,-668.51905549,0.0004,120]
[325333764,1714740643470,-3000.0,0.0004,15]
[325333766,1714740643480,-768.37,0.0004,120]
[325333768,1714740643490,-3666.7632452,0.00040082,14]
[325333770,1714740643499,-272.87,0.000401,7]
[325333772,1714740643509,-375.6,0.000401,7]
[325333774,1714740643519,-500.0,0.0004015,10]
[325333776,1714740643528,-352.43262006,0.00040221,2]
[325333778,1714740643537,-300.0,0.00040246,120]
[325333780,1714740643547,-2379.33,0.00040246,59]
[325333782,1714740643557,-2233.72,0.00040246,59]
[325333783,1714740643568,-3597.0,0.00040327,79]
[325333785,1714740643577,-529.0,0.000404,27]
[325333786,1714740643587,-500.0,0.00040424,10]
[325333787,1714740643596,-500.0,0.00040424,10]
[325333788,1714740643607,-5689.84975491,0.00040428,4]
[325333789,1714740643616,-5000.0,0.00040428,4]
[325333790,1714740643626,-2379.33,0.0004052,61]
[325333791,1714740643635,-2233.72,0.0004052,61]
[325333792,1714740643646,-400.0,0.00040587,2]
[325333793,1714740643658,-163.69417389,0.0004064,30]
[325333794,1714740643667,-352.43262006,0.00040757,2]
[325333795,1714740643677,-2379.33,0.00040794,63]
[325333796,1714740643686,-2233.72,0.00040794,63]
[325333797,1714740643699,-272.87,0.000408,7]
[325333798,1714740643708,-3666.7632452,0.00040845,14]
[325333799,1714740643717,-375.6,0.000409,7]
[325333800,1714740643727,-256.25,0.00040948,120]
[325333801,1714740643736,-500.0,0.00040972,10]
[325333802,1714740643746,-500.0,0.00040972,10]
[325333803,1714740643756,-10039.4864832,0.00040977,2]
[325333804,1714740643765,-467.10634467,0.00040993,120]
[325333805,1714740643775,-50000.0,0.00041,21]
[325333806,1714740643785,-500.0,0.00041,10]
[325333807,1714740643795,-772.51452266,0.00041,21]
[325333808,1714740643804,-455.17117466,0.00041,30]
[325333809,1714740643814,-3000.0,0.00041,16]
[325333810,1714740643823,-25034.75379723,0.00041,2]
[325333811,1714740643832,-300.0,0.00041005,120]
[325333812,1714740643842,-2379.33,0.00041068,65]
[325333813,1714740643851,-2233.72,0.00041068,65]
[325333814,1714740643861,-510.0,0.00041095,120]
[325333815,1714740643870,-1000.0,0.00041095,2]
[325333816,1714740643881,-157.0,0.00041096,2]
[325333817,1714740643890,-1000.0,0.00041096,30]
[325333818,1714740643900,-200.0,0.00041096,30]
[325333819,1714740644148,-207.42160459,0.000411,60]
[325333820,1714740644162,-151.0,0.00041111,2]
[325333821,1714740644171,-173.44422204,0.00041157,7]
[325333822,1714740644181,-150.0,0.00041177,2]
[325333823,1714740644193,-885.0,0.00041186,30]
[325333824,1714740644202,-750.0,0.00041186,30]
[325333825,1714740644211,-500.0,0.00041246,30]
[325333826,1714740644219,-352.43262006,0.00041293,2]
[325333827,1714740644228,-150.0,0.00041312,2]
[325333828,1714740644237,-2379.33,0.00041342,67]
[325333829,1714740644246,-2233.72,0.00041342,67]
[325333830,1714740644256,-150.0,0.00041368,2]
[325333831,1714740644265,-510.0,0.00041369,120]
[325333832,1714740644274,-272.87,0.000414,7]
[325333833,1714740644283,-500.0,0.0004152,30]
[325333834,1714740644292,-150.0,0.00041573,2]
[325333835,1714740644302,-427.62518345,0.00041575,30]
[325333836,1714740644312,-179.25586493,0.0004158,120]
[325333837,1714740644321,-150.0,0.00041596,2]
[325333838,1714740644330,-150.0,0.00041598,2]
[325333839,1714740644340,-375.6,0.000416,7]
[325333840,1714740644349,-3666.7632452,0.00041609,15]
[325333841,1714740644359,-885.0,0.00041611,30]
[325333842,1714740644368,-750.0,0.00041611,30]
[325333843,1714740644378,-2379.33,0.00041616,69]
[325333844,1714740644387,-2233.72,0.00041616,69]
[325333845,1714740644399,-510.0,0.00041643,120]
[325333846,1714740644410,-288.0,0.00041688,2]
[325333847,1714740644419,-245.12,0.00041726,2]
[325333848,1714740644429,-150.0,0.00041732,2]
[325333849,1714740644438,-300.0,0.00041762,2]
[325333850,1714740644452,-300.0,0.00041765,120]
[325333851,1714740644461,-541.98,0.0004177,30]
[325333852,1714740644470,-150.0,0.00041784,2]
[325333853,1714740644479,-247.77335561,0.00041794,30]
[325333854,1714740644488,-2000.0,0.000418,7]
[325333855,1714740644498,-302.0,0.00041802,4]
[325333856,1714740644510,-300.0,0.00041814,2]
[325333857,1714740644520,-352.43262006,0.00041829,2]
[325333858,1714740644530,-150.0,0.0004184,2]
[325333859,1714740644539,-150.0,0.00041871,2]
[325333860,1714740644549,-150.0,0.00041877,2]
[325333861,1714740644564,-2379.33,0.0004189,71]
[325333862,1714740644574,-2233.72,0.0004189,71]
[325333863,1714740644583,-336.56897342,0.000419,60]
[325333864,1714740644593,-300.0,0.000419,15]
[325333865,1714740644606,-22893.64304714,0.00041909,2]
[325333866,1714740644615,-582.94363769,0.00041917,120]
[325333867,1714740644625,-150.0,0.00041937,2]
[325333868,1714740644634,-465.33,0.00041971,7]
[325333869,1714740644644,-500.0,0.00041971,7]
[325333870,1714740644655,-500.0,0.00041971,7]
[325333871,1714740644666,-500.0,0.00041971,7]
[325333872,1714740644675,-500.0,0.00041971,7]
[325333873,1714740644684,-500.0,0.00041971,7]
[325333874,1714740644697,-500.0,0.00041971,7]
[325333875,1714740644706,-500.0,0.00041971,7]
[325333876,1714740644715,-500.0,0.00041971,7]
[325333877,1714740644724,-500.0,0.00041971,7]
[325333878,1714740644733,-500.0,0.00041971,7]
[325333879,1714740644742,-500.0,0.00041971,7]
[325333880,1714740644752,-500.0,0.00041971,7]
[325333881,1714740644763,-500.0,0.00041971,7]
[325333882,1714740644773,-500.0,0.00041971,7]
[325333883,1714740644784,-500.0,0.00041971,7]
[325333884,1714740644794,-500.0,0.00041971,7]
[325333885,1714740644803,-500.0,0.00041971,7]
[325333886,1714740644812,-500.0,0.00041971,7]
[325333887,1714740644821,-500.0,0.00041971,7]
[325333888,1714740644831,-500.0,0.00041971,7]
[325333889,1714740644842,-500.0,0.00041971,7]
[325333890,1714740644851,-500.0,0.00041971,7]
[325333891,1714740644860,-500.0,0.00041971,7]
[325333892,1714740644870,-500.0,0.00041971,7]
[325333893,1714740644879,-500.0,0.00041971,7]
[325333894,1714740644888,-500.0,0.00041971,7]
[325333895,1714740644898,-500.0,0.00041971,7]
[325333896,1714740644907,-500.0,0.00041971,7]
[325333897,1714740644916,-500.0,0.00041971,7]
[325333898,1714740644925,-500.0,0.00041971,7]
[325333899,1714740644935,-500.0,0.00041971,7]
[325333900,1714740644947,-500.0,0.00041971,7]
[325333901,1714740644956,-500.0,0.00041971,7]
[325333902,1714740644966,-500.0,0.00041971,7]
[325333903,1714740644975,-500.0,0.00041971,7]
[325333904,1714740644985,-500.0,0.00041971,7]
[325333905,1714740644994,-500.0,0.00041971,7]
[325333906,1714740645003,-500.0,0.00041971,7]
[325333907,1714740645012,-500.0,0.00041971,7]
[325333908,1714740645021,-500.0,0.00041971,7]
[325333909,1714740645031,-473.07,0.00041971,7]
[325333910,1714740645040,-500.0,0.00041971,7]
[325333911,1714740645049,-500.0,0.00041971,7]
[325333912,1714740645059,-500.0,0.00041971,7]
[325333913,1714740645068,-500.0,0.00041971,7]
[325333914,1714740645078,-500.0,0.00041971,7]
[325333915,1714740645087,-500.0,0.00041971,7]
[325333916,1714740645097,-500.0,0.00041971,7]
[325333917,1714740645106,-500.0,0.00041971,7]
[325333918,1714740645115,-500.0,0.00041971,7]
[325333919,1714740645124,-500.0,0.00041971,7]
[325333920,1714740645133,-500.0,0.00041971,7]
[325333921,1714740645142,-500.0,0.00041971,7]
[325333922,1714740645152,-500.0,0.00041971,7]
[325333923,1714740645161,-500.0,0.00041971,7]
[325333924,1714740645170,-500.0,0.00041971,7]
[325333925,1714740645179,-500.0,0.00041971,7]
[325333926,1714740645188,-500.0,0.00041971,7]
[325333927,1714740645201,-391.21,0.00041971,7]
[325333928,1714740645210,-500.0,0.00041971,7]
[325333929,1714740645220,-500.0,0.00041971,7]
[325333930,1714740645230,-10000.0,0.0004198,12]
[325333931,1714740645239,-50000.0,0.00042,22]
[325333932,1714740645249,-8788.07729824,0.00042,2]
[325333933,1714740645259,-2175.79451357,0.00042,2]
[325333934,1714740645268,-8006.9429354,0.00042,7]
[325333935,1714740645277,-500.0,0.00042,15]
[325333936,1714740645287,-10000.0,0.00042,15]
[325333937,1714740645297,-10000.0,0.00042,10]
[325333938,1714740645307,-10000.0,0.00042,5]
[325333939,1714740645316,-10000.0,0.00042,5]
[325333940,1714740645325,-5039.11047855,0.00042,4]
[325333941,1714740645335,-5039.11047855,0.00042,4]
[325333942,1714740645344,-215.1575341,0.00042,30]
[325333943,1714740645354,-497.8524063,0.00042,120]
[325333944,1714740645363,-287.04767932,0.00042,120]
[325333945,1714740645372,-482.3671683,0.00042,2]
[325333946,1714740645383,-570.0,0.00042,3]
[325333947,1714740645392,-708.9088801,0.00042,120]
[325333948,1714740645402,-5350.0,0.00042,30]
[325333949,1714740645412,-1611.0,0.00042,2]
[325333951,1714740645422,-668957.0,0.00042,2]
[325333953,1714740645431,-117715.84955359,0.00042,30]
[325333955,1714740645444,-3000.0,0.00042,17]
[325333956,1714740645453,-272.87,0.00042,7]
[325333957,1714740645463,-5000.0,0.00042,5]
[325333958,1714740645472,-38354.163283,0.00042,30]
[325333959,1714740645482,-261.02,0.00042,120]
[325333960,1714740645492,-1305.32132267,0.0004201,2]
[325333961,1714740645501,-150.0,0.00042021,2]
[325333962,1714740645511,-885.0,0.00042035,30]
[325333963,1714740645521,-750.0,0.00042035,30]
[325333965,1714740645531,-500.0,0.00042068,30]
[325333966,1714740645545,-500.0,0.00042068,30]
[325333967,1714740645555,-609.65231747,0.00042068,30]
[325333968,1714740645566,-300.0,0.00042071,2]
[325333969,1714740645577,-150.0,0.00042078,2]
[325333970,1714740645587,-150.0,0.00042138,2]
[325333971,1714740645596,-300.0,0.00042142,2]
[325333972,1714740645607,-150.0,0.00042152,2]
[325333973,1714740645616,-2379.33,0.00042164,73]
[325333974,1714740645626,-2233.72,0.00042164,73]
[325333975,1714740645636,-150.0,0.00042167,120]
[325333976,1714740645646,-525.39,0.00042182,10]
[325333977,1714740645655,-150.0,0.00042225,2]
[325333978,1714740645666,-150.0,0.00042237,2]
[325333979,1714740645676,-150.0,0.00042252,2]
[325333980,1714740645686,-150.0,0.00042278,2]
[325333981,1714740645698,-150.0,0.0004229,2]
[325333982,1714740645707,-150.0,0.00042297,2]
[325333983,1714740645717,-150.0,0.00042298,2]
[325333984,1714740645727,-375.6,0.000423,7]
[325333985,1714740645736,-150.0,0.000423,2]
[325333986,1714740645745,-150.0,0.000423,30]
[325333987,1714740645755,-150.0,0.000423,30]
[325333988,1714740645765,-158.72052633,0.000423,30]
[325333989,1714740645775,-153.7867125,0.000423,30]
[325333990,1714740645784,-163.64461999,0.000423,30]
[325333991,1714740645794,-150.0,0.000423,30]
[325333992,1714740645804,-150.0,0.00042311,2]
[325333993,1714740645814,-150.0,0.00042325,2]
[325333994,1714740645823,-150.0,0.00042327,2]
[325333995,1714740645833,-150.0,0.00042332,2]
[325333996,1714740645842,-150.0,0.00042333,2]
[325333997,1714740645852,-150.0,0.00042342,2]
[325333998,1714740645862,-352.43262006,0.00042364,2]
[325333999,1714740645871,-3666.7632452,0.00042373,16]
[325334000,1714740645880,-150.0,0.00042374,2]
[325334001,1714740645890,-150.0,0.00042377,2]
[325334002,1714740645899,-150.0,0.00042379,2]
[325334003,1714740645908,-1000.0,0.00042383,20]
[325334004,1714740645918,-150.0,0.00042399,2]
[325334005,1714740645927,-820267.52983634,0.000424,2]
[325334006,1714740645937,-430.84928547,0.000424,120]
[325334007,1714740645950,-200.0,0.000424,120]
[325334008,1714740645960,-165.35,0.000424,7]
[325334009,1714740645969,-150.0,0.00042406,2]
[325334010,1714740645978,-150.0,0.00042412,2]
[325334011,1714740645987,-300.0,0.00042416,2]
[325334012,1714740645997,-300.0,0.00042428,2]
[325334013,1714740646006,-150.0,0.00042429,2]
[325334014,1714740646016,-150.0,0.00042429,2]
[325334015,1714740646026,-150.0,0.00042429,2]
[325334016,1714740646036,-150.0,0.00042431,2]
[325334017,1714740646045,-150.0,0.00042432,2]
[325334018,1714740646054,-150.0,0.00042435,2]
[325334019,1714740646063,-2379.33,0.00042438,75]
[325334020,1714740646073,-2233.72,0.00042438,75]
[325334021,1714740646082,-150.0,0.00042449,2]
[325334022,1714740646092,-150.0,0.00042452,2]
[325334023,1714740646102,-885.0,0.0004246,30]
[325334024,1714740646111,-632.25400605,0.0004246,30]
[325334025,1714740646121,-487.83667133,0.0004246,30]
[325334026,1714740646130,-750.0,0.0004246,30]
[325334027,1714740646140,-1476.71365722,0.0004246,30]
[325334028,1714740646150,-150.0,0.00042461,2]
[325334029,1714740646160,-1000.0,0.00042465,2]
[325334031,1714740646169,-1044.92,0.00042466,2]
[325334032,1714740646178,-308.01,0.00042466,2]